bitfinex/quotes_ETHUSD_20240709
["timestamp","ask_amount","ask_price","bid_price","bid_amount"]
[1720563118198,0.55,3057.2,3056.4,0.9360622]
[1720563118374,1.13360414,3057.1,3056.5,0.47746642]
[1720563118569,1.68360414,3057.0,3056.5,0.47746642]
[1720563118788,0.55,3057.0,3056.5,0.47746642]
[1720563118976,1.13360419,3056.9,3056.5,0.47746642]
[1720563119175,1.13360419,3056.8,3056.5,0.47746642]
[1720563119377,1.13360419,3056.9,3056.5,0.47746642]
[1720563121396,1.13360642,3056.8,3056.5,0.47746642]
[1720563121583,1.69808972,3057.3,3056.5,0.47746642]
[1720563121584,1.13360642,3056.7,3056.5,0.47746642]
[1720563121777,1.69827696,3057.5,3056.6,2.4359]
[1720563121975,3.38188423,3057.4,3056.7,0.57773664]
[1720563122184,1.13360727,3057.3,3056.6,2.4359]
[1720563122378,1.13360727,3057.2,3056.6,2.4359]
[1720563122583,2.24827696,3057.4,3056.6,2.4359]
[1720563122584,1.13360727,3057.1,3056.6,2.4359]
[1720563122895,1.13360727,3057.0,3056.7,0.57773664]
[1720563123194,1.13360727,3056.9,3056.5,2.864]
[1720563123397,1.13360727,3056.8,3056.5,2.864]
[1720563123599,1.69827696,3057.3,3056.5,2.864]
[1720563123600,1.69827696,3057.3,3056.6,0.38000622]
[1720563123778,1.68359182,3057.2,3056.6,0.38000622]
[1720563124103,1.68359182,3057.1,3056.6,0.38000622]
[1720563124273,1.13359182,3057.0,3056.6,0.38000622]
[1720563124480,1.13359182,3057.2,3056.5,2.864]
[1720563124674,1.68358833,3057.1,3056.5,2.864]
[1720563124883,1.13358833,3057.0,3056.5,2.864]
[1720563125197,1.13359463,3056.9,3056.5,3.54400622]
[1720563125397,1.13359463,3056.8,3056.5,3.54400622]
[1720563125569,0.55,3057.1,3056.5,3.54400622]
[1720563125887,1.13358649,3057.0,3056.5,3.54400622]
[1720563126101,1.13358649,3056.9,3056.5,2.864]
[1720563126266,1.13358649,3056.8,3056.5,2.864]
[1720563126471,0.55,3057.2,3056.5,2.864]
[1720563126778,1.13358153,3057.1,3056.5,2.864]
[1720563126995,1.68358153,3057.0,3056.5,2.864]
[1720563127294,1.13358153,3056.9,3056.5,2.864]
[1720563127468,1.13358153,3056.8,3056.5,3.54400622]
[1720563127670,0.55,3057.0,3056.5,3.54400622]
[1720563127908,1.13358127,3056.9,3056.5,3.54400622]
[1720563128090,1.13358119,3056.8,3056.5,3.54400622]
[1720563128291,0.55,3057.2,3056.5,2.864]
[1720563128592,1.13358032,3057.1,3057.0,1.194]
[1720563128799,1.68358032,3057.1,3057.0,1.194]
[1720563131379,1.68357679,3057.1,3057.0,1.194]
[1720563134376,1.68357679,3057.1,3057.0,1.54077]
[1720563134377,1.13357679,3057.1,3057.0,1.54077]
[1720563134805,1.70101302,3057.7,3057.0,1.54077]
[1720563134991,1.13334582,3057.6,3057.0,0.34677]
[1720563135190,9.8632,3057.9,3057.6,1.194]
[1720563135402,2.83455051,3057.8,3057.6,1.194]
[1720563135593,1.13333336,3057.7,3057.6,1.194]
[1720563135877,1.1333405,3057.7,3057.6,1.194]
[1720563136100,3.38455765,3057.7,3057.6,1.194]
[1720563137016,1.6833405,3057.7,3057.4,1.194]
[1720563137188,3.38460592,3057.6,3057.4,1.194]
[1720563137392,1.1333405,3057.5,3057.4,1.194]
[1720563138209,1.13340878,3057.5,3057.4,1.194]
[1720563140435,1.13340878,3057.5,3057.2,1.194]
[1720563140636,1.13340878,3057.5,3057.0,1.194]
[1720563140637,2.83466245,3057.4,3057.0,1.194]
[1720563140787,2.83466245,3057.4,3056.6,3.0]
[1720563140788,1.13340878,3057.3,3057.2,1.194]
[1720563140987,1.68340878,3057.3,3057.2,1.194]
[1720563141288,0.55,3057.3,3057.2,1.194]
[1720563141493,1.6834549,3057.3,3057.2,1.194]
[1720563143389,1.6834549,3057.3,3056.6,3.0]
[1720563143613,1.6834549,3057.2,3057.1,1.194]
[1720563143816,1.6834549,3057.2,3056.7,1.27746]
[1720563144123,0.55,3057.2,3057.1,1.194]
[1720563144422,1.6834592,3057.3,3057.1,1.194]
[1720563144725,0.55,3057.3,3057.1,1.194]
[1720563144910,1.13345778,3057.2,3057.1,1.194]
[1720563145218,0.55,3057.2,3057.1,1.194]
[1720563145714,1.68346252,3057.3,3057.1,1.194]
[1720563145914,1.13346252,3057.2,3057.1,1.194]
[1720563146083,1.68346252,3057.2,3057.1,1.194]
[1720563147487,2.26998441,3057.2,3056.2,2.2745]
[1720563147822,4.18175636,3056.6,3056.2,1.194]
[1720563147997,3.38401888,3056.5,3056.2,1.194]
[1720563148189,1.70028674,3056.4,3056.2,1.194]
[1720563148386,1.13346252,3056.3,3056.2,1.194]
[1720563149499,0.55,3056.5,3056.2,1.194]
[1720563149500,1.13346252,3056.4,3056.2,1.194]
[1720563149707,1.13346252,3056.4,3056.3,1.194]
[1720563151536,0.55,3056.5,3056.3,1.194]
[1720563151753,1.13380407,3056.4,3056.3,1.194]
[1720563154825,0.55,3056.5,3056.3,1.194]
[1720563154988,1.13380409,3056.4,3056.3,1.194]
[1720563155196,0.55,3056.5,3056.3,1.194]
[1720563155389,1.13380451,3056.4,3056.3,1.194]
[1720563156039,1.13380436,3056.4,3056.3,1.194]
[1720563158260,0.55,3056.5,3056.3,1.194]
[1720563158445,1.13380577,3056.4,3056.3,1.194]
[1720563158750,1.13380555,3056.4,3056.3,1.194]
[1720563161772,1.13380593,3056.4,3056.3,1.194]
[1720563165245,1.1338087,3056.4,3056.3,1.194]
[1720563165650,1.13381045,3056.4,3056.3,1.194]
[1720563168476,0.55,3056.5,3056.3,1.194]
[1720563168675,1.13380667,3056.4,3056.3,1.194]
[1720563171867,0.55,3056.5,3056.3,1.194]
[1720563172075,1.13381023,3056.4,3056.3,1.194]
[1720563172296,1.13381023,3056.4,3056.3,3.6869]
[1720563172951,1.13381023,3056.4,3056.3,4.05559]
[1720563174201,1.6973984,3057.0,3056.3,4.05559]
[1720563174396,7.46,3057.5,3056.3,4.05559]
[1720563174397,1.13357525,3056.9,3056.8,1.194]
[1720563175059,7.46,3057.5,3056.8,1.194]
[1720563175259,1.69746321,3057.5,3057.4,1.194]
[1720563175460,2.83093345,3057.5,3057.4,1.194]
[1720563175767,2.83089844,3057.5,3057.4,1.194]
[1720563175967,3.38089844,3057.5,3057.4,1.194]
[1720563176163,3.95531828,3057.5,3057.4,1.194]
[1720563176493,3.95525434,3057.5,3057.4,1.194]
[1720563178108,3.3808345,3057.5,3057.4,1.194]
[1720563178491,0.55,3057.5,3057.2,1.194]
[1720563178659,2.83060832,3057.5,3057.2,1.194]
[1720563179002,1.13346091,3057.4,3057.2,1.194]
[1720563181006,0.55,3057.3,3056.5,2.4043]
[1720563181223,0.55,3057.3,3056.9,1.194]
[1720563181224,1.13350191,3057.2,3056.9,1.194]
[1720563181371,1.13350191,3057.1,3056.9,1.194]
[1720563181568,1.13350191,3057.0,3056.9,1.194]
[1720563181842,1.13350191,3057.2,3056.9,1.194]
[1720563181985,1.13350191,3057.2,3057.1,1.194]
[1720563182304,1.13350191,3057.2,3057.1,3.4968]
[1720563182609,1.13350191,3057.3,3057.1,3.4968]
[1720563182833,1.13350191,3057.2,3057.1,2.3028]
[1720563183104,1.13350191,3057.2,3057.1,1.194]
[1720563184325,4.17512062,3057.5,3057.1,1.194]
[1720563184487,1.13347163,3057.2,3057.1,1.194]
[1720563184683,1.69672062,3057.8,3057.1,3.6062]
[1720563184907,7.46,3058.1,3057.1,3.6062]
[1720563184908,1.69754351,3057.9,3057.7,1.194]
[1720563185088,1.1332367,3057.8,3057.2,5.68316]
[1720563185283,1.69754351,3058.2,3057.7,1.194]
[1720563185505,1.13316252,3058.1,3057.2,6.251482]
[1720563185708,1.69754351,3058.2,3058.0,1.194]
[1720563185896,1.13316258,3058.1,3058.0,1.194]
[1720563186380,1.68316258,3058.1,3058.0,1.194]
[1720563187580,1.13316258,3058.1,3058.0,1.194]
[1720563187800,1.13304431,3058.1,3058.0,1.194]
[1720563188119,1.69670123,3058.6,3058.0,1.194]
[1720563188407,1.1330701,3058.5,3058.3,1.194]
[1720563188597,1.1330701,3058.4,3058.3,1.194]
[1720563189100,1.6830701,3058.4,3058.3,1.194]
[1720563190412,1.1330701,3058.4,3058.3,1.194]
[1720563190708,3.0,3059.1,3058.0,5.1472]
[1720563190709,1.69670123,3058.8,3058.0,5.1472]
[1720563190905,1.13300195,3058.7,3058.1,0.22852]
[1720563191105,3.0,3058.8,3058.0,5.1472]
[1720563191320,1.13297539,3058.7,3058.0,5.1472]
[1720563191513,1.13297539,3058.6,3058.1,0.51472]
[1720563191689,1.69670123,3059.0,3058.1,0.51472]
[1720563191906,1.68296319,3058.9,3058.1,0.51472]
[1720563192113,1.13296319,3058.8,3058.1,0.51472]
[1720563192310,1.68296319,3058.7,3058.2,0.8932]
[1720563192501,0.55,3058.9,3058.2,0.8932]
[1720563192825,1.13295984,3058.8,3058.2,0.8932]
[1720563193025,0.55,3058.7,3058.2,0.8932]
[1720563193500,3.0,3059.1,3058.2,0.8932]
[1720563193701,1.13289997,3059.0,3058.2,0.8932]
[1720563193930,3.0,3059.1,3058.3,0.41631]
[1720563194140,2.4253,3059.2,3058.3,0.41631]
[1720563194437,3.0,3059.3,3058.3,0.41631]
[1720563194606,1.13285253,3059.2,3058.3,0.41631]
[1720563194937,3.0,3059.4,3058.3,0.41631]
[1720563195162,0.55,3059.1,3058.4,2.862]
[1720563195315,0.55,3059.2,3058.4,2.862]
[1720563195495,0.55,3059.3,3058.4,2.862]
[1720563195699,0.55,3059.3,3058.5,0.654808]
[1720563200654,0.55,3059.3,3058.6,2.4977]
[1720563202018,0.55,3059.3,3058.7,2.862]
[1720563202537,9.8826,3060.1,3059.2,2.3148]
[1720563202748,1.13268373,3060.0,3059.3,0.51768]
[1720563203044,1.13268373,3059.9,3059.2,2.3148]
[1720563203205,2.4226,3060.1,3059.2,2.3148]
[1720563203407,1.13259461,3060.0,3059.3,0.51768]
[1720563203716,1.13259461,3059.9,3059.3,0.51768]
[1720563203916,2.4226,3060.1,3059.3,0.51768]
[1720563204122,1.13259213,3060.0,3059.1,2.862]
[1720563204307,1.13259213,3059.9,3059.1,2.862]
[1720563204510,2.4226,3060.1,3059.1,2.862]
[1720563204708,1.13263014,3060.0,3059.1,2.862]
[1720563205022,1.68262999,3059.9,3059.2,0.2862]
[1720563205344,0.55,3059.9,3059.2,0.2862]
[1720563205639,0.55,3060.0,3059.2,0.2862]
[1720563205844,1.1326249,3059.9,3059.2,0.2862]
[1720563206006,0.55,3059.8,3059.3,0.31482]
[1720563206333,0.55,3060.0,3059.3,0.31482]
[1720563206504,1.13262467,3059.9,3059.3,0.31482]
[1720563206704,0.55,3059.8,3059.3,0.31482]
[1720563206938,0.55,3060.0,3059.3,0.31482]
[1720563207136,1.13262505,3059.9,3059.3,0.31482]
[1720563207435,0.55,3059.8,3059.3,0.31482]
[1720563207846,2.4226,3060.1,3059.3,0.31482]
[1720563207847,0.55,3060.0,3059.3,0.31482]
[1720563208008,1.13262427,3059.9,3059.3,0.31482]
[1720563208207,0.55,3060.0,3059.3,0.31482]
[1720563208408,1.13262459,3059.9,3059.3,0.31482]
[1720563208607,0.55,3059.8,3059.3,0.31482]
[1720563208833,0.55,3060.0,3059.3,0.31482]
[1720563209142,1.13262541,3059.9,3059.3,0.31482]
[1720563209361,0.55,3059.8,3059.3,0.31482]
[1720563209555,0.55,3060.0,3059.3,0.31482]
[1720563209848,1.13262107,3059.9,3059.3,0.31482]
[1720563210013,0.55,3059.8,3059.3,0.31482]
[1720563210417,0.55,3060.0,3059.3,0.31482]
[1720563210614,1.13262107,3059.9,3059.3,0.31482]
[1720563210840,0.55,3059.8,3059.3,0.31482]
[1720563211069,0.55,3060.0,3059.3,0.31482]
[1720563211436,1.1326203,3059.9,3059.5,2.862]
[1720563211642,0.55,3060.0,3059.6,0.53464]
[1720563212659,0.55,3060.0,3059.8,1.191]
[1720563212867,2.8899,3060.0,3059.0,2.4844]
[1720563213064,1.13256547,3059.9,3059.1,0.24844]
[1720563213294,1.13256547,3059.8,3059.2,1.191]
[1720563213453,0.55,3059.7,3059.2,1.191]
[1720563213652,1.13256547,3059.6,3059.2,1.191]
[1720563213851,0.55,3059.5,3059.2,1.191]
[1720563214585,0.55,3059.5,3058.8,2.4844]
[1720563215151,1.13271088,3059.4,3058.8,2.4844]
[1720563215356,0.55,3059.3,3058.8,2.4844]
[1720563215559,0.55,3059.5,3058.9,0.53454]
[1720563215784,1.13271061,3059.4,3058.9,0.53454]
[1720563216088,0.55,3059.5,3058.9,0.53454]
[1720563216382,1.13270584,3059.4,3059.0,0.301894]
[1720563216784,0.55,3059.5,3059.0,0.301894]
[1720563216979,1.13270765,3059.4,3059.0,0.301894]
[1720563217283,1.13270765,3059.3,3059.0,0.301894]
[1720563217456,0.55,3059.5,3059.0,0.301894]
[1720563217657,1.13270801,3059.4,3059.0,0.301894]
[1720563217988,0.55,3059.5,3059.0,0.301894]
[1720563217989,1.13270801,3059.3,3059.0,0.301894]
[1720563218285,0.55,3059.5,3059.0,0.301894]
[1720563218455,1.13270833,3059.4,3059.0,0.301894]
[1720563218655,0.55,3059.5,3059.0,0.301894]
[1720563218972,1.13270808,3059.4,3059.0,0.301894]
[1720563219175,1.13270808,3059.3,3059.0,0.301894]
[1720563219476,1.13270808,3059.2,3059.0,0.301894]
[1720563219778,0.55,3059.5,3059.0,0.301894]
[1720563219954,1.13270926,3059.4,3059.0,0.301894]
[1720563220156,1.13270926,3059.3,3059.0,0.301894]
[1720563220355,1.13270926,3059.2,3059.0,0.301894]
[1720563220657,0.55,3059.5,3059.0,0.301894]
[1720563220857,1.13270849,3059.4,3059.0,0.301894]
[1720563221172,0.55,3059.5,3059.0,0.301894]
[1720563221173,1.13270849,3059.3,3059.0,0.301894]
[1720563221380,1.13270802,3059.2,3059.0,0.301894]
[1720563221676,0.55,3059.5,3059.0,0.301894]
[1720563221977,1.13270813,3059.4,3059.0,0.301894]
[1720563222180,1.13270813,3059.3,3059.0,0.301894]
[1720563222486,0.55,3059.5,3059.0,0.301894]
[1720563222487,1.13270813,3059.2,3059.0,0.301894]
[1720563222696,0.55,3059.5,3058.9,0.53454]
[1720563222697,1.13270813,3059.4,3058.9,0.53454]
[1720563224872,0.55,3059.5,3058.9,0.53454]
[1720563225177,1.13270881,3059.4,3058.9,0.53454]
[1720563225375,1.132703,3059.3,3058.9,0.53454]
[1720563225683,1.132703,3059.2,3058.9,0.53454]
[1720563225975,1.132703,3059.1,3058.9,0.53454]
[1720563226298,0.55,3059.5,3059.0,0.301894]
[1720563226458,1.13270927,3059.4,3059.0,0.301894]
[1720563226784,1.13270927,3059.3,3058.9,0.53454]
[1720563226994,1.13270927,3059.4,3058.9,0.53454]
[1720563227151,1.13270927,3059.3,3058.9,0.53454]
[1720563227351,1.13270927,3059.2,3058.9,0.53454]
[1720563227552,1.13270927,3059.1,3059.0,0.301894]
[1720563228249,1.13270093,3059.1,3059.0,0.301894]
[1720563231252,1.13270093,3059.1,3058.9,0.53454]
[1720563231585,1.13268998,3059.0,3058.9,0.53454]
[1720563231755,1.13268998,3059.0,3058.8,2.4844]
[1720563231955,0.55,3059.5,3058.7,2.861]
[1720563231956,1.1327122,3058.9,3058.7,2.861]
[1720563232270,2.3072,3059.4,3058.7,2.861]
[1720563232271,1.1327122,3058.8,3058.7,2.861]
[1720563232478,1.1327122,3058.8,3058.4,2.4243]
[1720563232479,1.1327122,3059.3,3058.4,2.4243]
[1720563232664,0.55,3059.2,3058.5,0.855506]
[1720563232982,1.1327122,3059.1,3058.5,0.855506]
[1720563235097,1.13281626,3059.0,3058.5,0.855506]
[1720563235293,1.13281626,3058.9,3058.5,0.855506]
[1720563235671,1.13281626,3059.1,3058.5,0.855506]
[1720563235996,1.13281626,3059.0,3058.6,0.3279806]
[1720563236196,1.13281626,3058.9,3058.6,0.3279806]
[1720563236574,1.13281626,3058.8,3058.6,0.3279806]
[1720563236776,2.24963186,3059.2,3058.7,1.192]
[1720563236984,2.83244865,3059.1,3058.4,2.4243]
[1720563237293,2.83244865,3059.1,3058.4,1.192]
[1720563237294,1.69963186,3058.6,3058.4,1.192]
[1720563237464,2.83244865,3058.5,3058.4,1.192]
[1720563237660,1.68281679,3058.5,3058.4,1.192]
[1720563238289,0.55,3058.5,3058.4,1.192]
[1720563238499,1.1330526,3058.5,3058.4,1.192]
[1720563238818,1.6830526,3058.5,3057.8,2.862]
[1720563238976,2.24997992,3058.4,3057.8,2.862]
[1720563239308,1.1330526,3058.3,3057.8,2.862]
[1720563239598,1.1330526,3058.3,3057.7,0.97592]
[1720563239759,3.4575526,3058.3,3057.7,0.97592]
[1720563239958,1.1330526,3058.2,3057.6,2.2892]
[1720563240191,0.55,3058.1,3057.6,2.2892]
[1720563240395,1.1330526,3058.0,3057.6,2.2892]
[1720563240929,1.1330526,3058.0,3057.5,2.862]
[1720563241080,1.13318433,3057.9,3057.5,3.1482]
[1720563241281,1.13318433,3057.8,3057.5,3.1482]
[1720563241482,1.13318433,3058.0,3057.6,0.31482]
[1720563241682,1.13318433,3057.9,3057.6,0.31482]
[1720563241883,0.55,3058.1,3057.7,0.346302]
[1720563242169,1.13316993,3058.0,3057.7,0.346302]
[1720563242426,1.13316993,3057.9,3057.7,0.346302]
[1720563242608,1.13316993,3058.0,3057.7,0.346302]
[1720563242808,0.55,3058.1,3057.7,0.346302]
[1720563243124,1.13316837,3058.0,3057.7,0.346302]
[1720563243323,0.55,3058.2,3057.7,0.346302]
[1720563243529,1.13316724,3058.1,3057.7,0.346302]
[1720563243684,1.13316724,3058.0,3057.7,0.346302]
[1720563244025,0.55,3058.2,3057.7,0.346302]
[1720563244187,1.13316851,3058.1,3057.7,0.346302]
[1720563244385,1.13316851,3058.0,3057.5,2.862]
[1720563244695,1.69711709,3058.4,3057.5,2.862]
[1720563244895,1.68316918,3058.3,3057.5,3.723414]
[1720563245211,1.13316918,3058.2,3057.5,3.723414]
[1720563245413,1.68316778,3058.1,3057.5,3.723414]
[1720563245584,0.55,3058.1,3057.6,0.3723414]
[1720563245780,0.55,3058.3,3057.5,2.862]
[1720563245984,1.13316931,3058.2,3057.6,0.2862]
[1720563246216,1.68316931,3058.1,3057.6,0.2862]
[1720563246411,0.55,3058.3,3057.6,0.2862]
[1720563246626,1.13317041,3058.2,3057.6,0.2862]
[1720563246785,1.68317041,3058.1,3057.6,0.2862]
[1720563246987,0.55,3058.3,3057.6,0.2862]
[1720563247186,1.13317183,3058.2,3057.6,0.2862]
[1720563247387,0.55,3058.1,3057.6,0.2862]
[1720563247713,0.55,3058.3,3057.6,0.2862]
[1720563248022,1.13317261,3058.2,3057.6,0.2862]
[1720563248190,1.68317261,3058.1,3057.6,0.2862]
[1720563248396,0.55,3058.4,3057.6,0.2862]
[1720563248601,1.13317278,3058.3,3057.6,0.2862]
[1720563248835,1.68317278,3058.2,3057.6,0.2862]
[1720563249130,1.68317278,3058.1,3057.6,0.2862]
[1720563249432,0.55,3058.4,3057.7,0.31482]
[1720563249634,1.13316672,3058.3,3057.5,2.862]
[1720563249942,1.68316672,3058.2,3057.5,2.862]
[1720563250114,0.55,3058.2,3057.5,2.862]
[1720563250329,0.55,3058.4,3057.6,2.691]
[1720563250504,1.13316457,3058.3,3057.6,2.691]
[1720563250842,1.6831313,3058.2,3057.6,2.691]
[1720563251069,0.55,3058.4,3057.7,0.5553]
[1720563251372,1.13313163,3058.3,3057.7,0.5553]
[1720563251546,0.55,3058.2,3057.7,0.5553]
[1720563251704,0.55,3058.2,3057.8,0.32463]
[1720563251902,0.55,3058.5,3057.8,0.32463]
[1720563252113,1.13311123,3058.4,3057.8,0.32463]
[1720563252422,1.68311123,3058.3,3057.8,0.32463]
[1720563252624,0.55,3058.3,3057.7,0.5553]
[1720563252836,0.55,3058.5,3057.7,0.5553]
[1720563253005,1.13310761,3058.4,3057.7,0.5553]
[1720563253206,1.68310761,3058.3,3057.8,0.32463]
[1720563253431,0.55,3058.3,3057.8,0.32463]
[1720563253629,0.55,3058.5,3057.8,0.32463]
[1720563253837,1.13311189,3058.4,3057.8,0.32463]
[1720563254038,1.68311189,3058.3,3057.8,0.32463]
[1720563254234,0.55,3058.3,3057.8,0.32463]
[1720563254538,1.13311108,3058.2,3057.8,0.32463]
[1720563254745,0.55,3058.5,3057.8,0.32463]
[1720563254903,1.13311095,3058.4,3057.8,0.32463]
[1720563255098,1.68311095,3058.3,3057.8,0.32463]
[1720563255302,1.69378682,3058.9,3058.0,2.4647]
[1720563255549,1.13299616,3058.8,3058.1,0.85969]
[1720563255840,1.13299616,3058.7,3058.1,0.85969]
[1720563256048,2.3442,3059.0,3058.1,0.85969]
[1720563256218,2.3442,3059.0,3058.2,0.332439]
[1720563256219,1.13293314,3058.9,3058.2,0.332439]
[1720563256532,1.68293314,3058.8,3058.2,0.332439]
[1720563256733,1.13293314,3058.7,3058.0,2.4647]
[1720563256942,0.55,3058.6,3058.0,2.4647]
[1720563257342,0.55,3058.9,3058.0,2.4647]
[1720563257539,1.13294785,3058.8,3058.0,3.356864]
[1720563257743,1.68294785,3058.7,3058.0,3.356864]
[1720563257920,1.13294785,3058.6,3058.0,3.356864]
[1720563258128,0.55,3058.6,3058.0,3.356864]
[1720563258326,0.55,3058.6,3058.1,0.6218864]
[1720563258533,0.55,3058.9,3058.1,0.6218864]
[1720563258840,1.13294912,3058.8,3058.1,0.6218864]
[1720563259059,1.68294912,3058.7,3057.9,2.862]
[1720563259271,1.68294912,3058.7,3057.9,0.566763]
[1720563259557,1.13294912,3058.6,3057.9,0.566763]
[1720563260652,1.13294912,3058.6,3058.5,1.193]
[1720563260861,1.68301183,3058.6,3058.5,1.193]
[1720563263117,1.68301183,3058.6,3058.5,1.189]
[1720563264261,1.68299574,3058.6,3058.5,1.189]
[1720563264560,0.55,3058.6,3058.5,1.189]
[1720563265066,1.13299773,3058.6,3058.5,1.189]
[1720563265282,1.68299773,3058.6,3058.5,1.189]
[1720563265471,0.55,3058.6,3058.5,1.189]
[1720563265762,1.68299773,3058.6,3058.5,1.189]
[1720563267619,1.68299871,3058.6,3058.5,1.189]
[1720563271026,1.682992,3058.6,3058.5,1.189]
[1720563271222,1.682992,3058.6,3058.5,3.6015]
[1720563271423,1.132992,3058.6,3058.5,3.6015]
[1720563273470,1.132992,3058.6,3058.5,3.96165]
[1720563274261,3.0,3059.1,3058.5,3.96165]
[1720563274442,1.69572779,3058.9,3058.5,2.4125]
[1720563274650,1.69572779,3058.9,3058.8,1.193]
[1720563274838,3.37862872,3058.9,3058.8,1.193]
[1720563275435,2.24571599,3058.9,3058.8,1.193]
[1720563275644,3.37864611,3058.9,3058.8,1.193]
[1720563276029,1.68293012,3058.9,3058.8,1.193]
[1720563277557,0.55,3058.9,3058.8,1.193]
[1720563277872,1.6829407,3058.9,3058.8,1.193]
[1720563278932,1.68293897,3058.9,3058.8,1.193]
[1720563279232,2.28973173,3058.9,3058.8,1.193]
[1720563279752,3.02426816,3058.9,3058.8,1.193]
[1720563279960,3.02426816,3058.9,3058.6,1.193]
[1720563280260,1.6972589,3058.7,3058.6,1.193]
[1720563280459,2.83019787,3058.7,3058.6,1.193]
[1720563280636,3.38019787,3058.7,3058.6,1.193]
[1720563281274,3.38064904,3058.7,3058.6,1.193]
[1720563284443,0.55,3058.7,3058.6,1.193]
[1720563284672,2.24798005,3058.7,3058.6,1.193]
[1720563284877,3.38091958,3058.7,3058.6,1.193]
[1720563285081,3.38091651,3058.7,3058.6,1.193]
[1720563285792,3.38091677,3058.7,3058.6,1.193]
[1720563288013,3.38085934,3058.7,3058.6,1.193]
[1720563289128,1.13293471,3058.7,3058.6,1.193]
[1720563289281,1.13293471,3058.7,3058.6,4.81255]
[1720563289620,1.69792463,3059.3,3058.9,3.26914]
[1720563289934,9.49750956,3059.6,3059.0,0.557704]
[1720563289935,1.1325908,3059.2,3059.0,0.557704]
[1720563290081,1.1325908,3059.2,3059.1,1.193]
[1720563290409,1.13259834,3059.5,3059.1,1.193]
[1720563290616,1.13259834,3059.4,3059.0,0.557704]
[1720563290816,9.15792463,3059.6,3059.3,1.193]
[1720563291015,1.13259622,3059.5,3059.1,0.3826844]
[1720563291319,1.69745749,3059.7,3059.4,1.193]
[1720563291485,1.69745749,3059.7,3059.1,0.3826844]
[1720563291486,1.13259558,3059.6,3059.1,0.3826844]
[1720563291685,1.13259558,3059.5,3059.1,0.3826844]
[1720563292012,1.69745749,3059.7,3059.4,1.193]
[1720563292313,1.13259584,3059.6,3059.1,0.3826844]
[1720563292518,1.13259584,3059.5,3059.1,0.3826844]
[1720563292682,1.13259584,3059.6,3059.4,1.193]
[1720563293016,1.13259584,3059.6,3059.5,1.193]
[1720563294720,1.13259718,3059.6,3059.5,1.193]
[1720563295011,2.2931,3060.0,3059.5,1.193]
[1720563295213,1.13259785,3059.6,3059.1,0.3826844]
[1720563295510,1.69605298,3059.8,3059.5,1.193]
[1720563295714,1.68259865,3059.7,3059.1,0.3826844]
[1720563295877,0.55,3059.7,3059.6,1.193]
[1720563296078,1.68259737,3059.7,3059.6,1.193]
[1720563298075,0.55,3059.7,3059.6,1.193]
[1720563298294,1.68259702,3059.7,3059.6,1.193]
[1720563298595,1.68259702,3059.7,3058.8,2.3079]
[1720563298924,0.55,3059.7,3059.6,1.193]
[1720563299124,1.68258764,3059.7,3059.6,1.193]
[1720563300082,1.68258764,3059.7,3059.5,1.193]
[1720563300287,1.13258764,3059.6,3059.5,1.193]
[1720563300484,1.68258764,3059.6,3059.5,1.193]
[1720563300691,4.28921398,3059.6,3059.5,1.193]
[1720563300915,4.28927954,3059.6,3059.5,1.193]
[1720563301117,4.28927959,3059.6,3059.5,1.193]
[1720563301322,4.28927959,3059.6,3058.6,2.3172]
[1720563301544,4.28927959,3059.6,3057.5,1.02847422]
[1720563301545,1.69512874,3059.1,3057.8,2.3172]
[1720563301747,2.82778199,3059.0,3058.8,1.193]
[1720563302035,2.82778199,3059.0,3057.8,2.3172]
[1720563302036,2.2688,3058.8,3057.8,2.3172]
[1720563302246,1.69487296,3058.5,3057.2,2.3172]
[1720563302392,1.69487296,3058.5,3058.2,1.193]
[1720563302393,1.13265325,3058.4,3058.2,1.193]
[1720563302590,0.55,3058.3,3058.2,1.193]
[1720563302792,1.68265325,3058.3,3058.2,1.193]
[1720563303620,0.55,3058.3,3058.2,1.193]
[1720563303805,1.1331306,3058.3,3058.2,1.193]
[1720563304011,1.6831306,3058.3,3058.2,1.193]
[1720563304208,1.68312984,3058.3,3058.2,1.193]
[1720563307038,0.55,3058.3,3058.2,1.193]
[1720563307347,1.69359856,3058.5,3058.2,1.193]
[1720563307644,1.68313894,3058.4,3058.2,1.193]
[1720563307841,1.13313894,3058.3,3058.2,1.193]
[1720563308052,1.69359856,3058.5,3058.2,1.193]
[1720563308340,1.69359856,3058.5,3057.8,3.27032]
[1720563308341,4.69359856,3058.7,3058.4,1.193]
[1720563308545,1.13298313,3058.6,3058.0,2.4734]
[1720563308760,1.69359856,3058.8,3058.5,1.193]
[1720563308924,1.13294644,3058.7,3058.0,2.4734]
[1720563309109,1.13294644,3058.6,3058.0,2.4734]
[1720563309312,2.826545,3058.8,3058.5,1.193]
[1720563309546,1.69359856,3058.8,3058.7,1.193]
[1720563309853,2.4113,3058.7,3058.5,1.193]
[1720563310035,3.37652244,3058.6,3058.3,1.193]
[1720563310209,1.1329819,3058.5,3057.6,2.4734]
[1720563310410,1.68311294,3058.4,3057.6,2.4734]
[1720563310606,0.55,3058.6,3058.3,1.193]
[1720563310847,1.13304459,3058.5,3057.6,2.4734]
[1720563311022,0.55,3058.6,3057.6,2.4734]
[1720563311023,0.55,3058.6,3058.4,1.193]
[1720563311232,1.6934463,3058.8,3058.4,1.193]
[1720563311453,1.6829911,3058.7,3058.6,1.193]
[1720563311762,3.3764374,3058.7,3058.4,1.193]